[Event "*** Titled Tuesday 3|2 Blitz"]
[Site "Chess.com"]
[Date "2016.05.03"]
[Round "9"]
[White "yian123"]
[Black "BahadirOzen"]
[Result "0-1"]
[WhiteElo "2419"]
[BlackElo "2503"]
[TimeControl "180+2"]
[EndTime "12:54:59 PDT"]
[Termination "BahadirOzen won by resignation"]

1. e4 {[%clk 0:03:01.9]} 1... d6 {[%clk 0:03:00.6]} 2. d4 {[%clk 0:03:02.3]}
2... Nf6 {[%clk 0:03:02.2]} 3. Nc3 {[%clk 0:03:03.8]} 3... Nbd7 {[%clk
0:03:03.1]} 4. f4 {[%clk 0:03:02.7]} 4... e5 {[%clk 0:03:02.9]} 5. Nf3 {[%clk
0:03:04.1]} 5... exd4 {[%clk 0:02:59.8]} 6. Qxd4 {[%clk 0:03:04.7]} 6... c6
{[%clk 0:03:01.1]} 7. a4 {[%clk 0:03:04.8]} 7... d5 {[%clk 0:02:55.7]} 8. exd5
{[%clk 0:02:49]} 8... Bc5 {[%clk 0:02:55.4]} 9. Qc4 {[%clk 0:02:48.7]} 9... O-O
{[%clk 0:02:51.4]} 10. b4 {[%clk 0:02:43.3]} 10... cxd5 {[%clk 0:02:33.5]} 11.
Qb3 {[%clk 0:02:40.4]} 11... Qe7+ {[%clk 0:01:48.4]} 12. Be2 {[%clk 0:02:26.4]}
12... Bxb4 {[%clk 0:01:49.3]} 13. Bd2 {[%clk 0:02:27.4]} 13... Re8 {[%clk
0:01:44]} 14. Nd4 {[%clk 0:02:20.6]} 14... Nc5 {[%clk 0:01:41.8]} 15. Qb2 {[%clk
0:02:17.5]} 15... Bg4 {[%clk 0:01:02.1]} 16. O-O {[%clk 0:02:13.9]} 16... Bxc3
{[%clk 0:00:55.8]} 17. Qxc3 {[%clk 0:02:10.5]} 17... Bxe2 {[%clk 0:00:49.4]} 18.
Rfe1 {[%clk 0:02:11.1]} 18... Nce4 {[%clk 0:00:44.1]} 19. Qb2 {[%clk 0:02:10.6]}
19... Ba6 {[%clk 0:00:42.7]} 0-1

[Event "*** Titled Tuesday 3|2 Blitz"]
[Site "Chess.com"]
[Date "2016.05.03"]
[Round "9"]
[White "jk13"]
[Black "PowerThinking2650"]
[Result "1-0"]
[WhiteElo "2411"]
[BlackElo "2172"]
[TimeControl "180+2"]
[EndTime "12:55:29 PDT"]
[Termination "jk13 won by resignation"]

1. d4 {[%clk 0:03:01.9]} 1... Nf6 {[%clk 0:03:00.7]} 2. Bf4 {[%clk 0:03:03.4]}
2... g6 {[%clk 0:03:01]} 3. e3 {[%clk 0:03:04.7]} 3... Bg7 {[%clk 0:03:02]} 4.
h3 {[%clk 0:03:05.3]} 4... O-O {[%clk 0:03:02.6]} 5. Nf3 {[%clk 0:03:07.1]} 5...
d6 {[%clk 0:03:03.7]} 6. Be2 {[%clk 0:03:06.9]} 6... b6 {[%clk 0:03:04.7]} 7.
O-O {[%clk 0:03:07.6]} 7... Bb7 {[%clk 0:03:05.8]} 8. a4 {[%clk 0:03:09.2]} 8...
a6 {[%clk 0:03:06.4]} 9. c3 {[%clk 0:03:09.3]} 9... Nbd7 {[%clk 0:03:06]} 10.
Bh2 {[%clk 0:03:10.2]} 10... Ne4 {[%clk 0:03:06.4]} 11. Nbd2 {[%clk 0:03:10.8]}
11... e5 {[%clk 0:02:56.8]} 12. Nxe4 {[%clk 0:03:01.4]} 12... Bxe4 {[%clk
0:02:57.2]} 13. Nd2 {[%clk 0:03:03.3]} 13... Bb7 {[%clk 0:02:55.5]} 14. Bf3
{[%clk 0:03:01.2]} 14... Qc8 {[%clk 0:02:54.4]} 15. Re1 {[%clk 0:02:55.2]} 15...
h6 {[%clk 0:02:42.1]} 16. b4 {[%clk 0:02:49.7]} 16... Kh7 {[%clk 0:02:41.5]} 17.
Rc1 {[%clk 0:02:48.8]} 17... f5 {[%clk 0:02:40.7]} 18. Bxb7 {[%clk 0:02:48]}
18... Qxb7 {[%clk 0:02:40.6]} 19. Nb3 {[%clk 0:02:49.6]} 19... Rae8 {[%clk
0:02:27]} 20. dxe5 {[%clk 0:02:49.7]} 20... Nxe5 {[%clk 0:02:26.2]} 21. c4
{[%clk 0:02:49.5]} 21... Qe4 {[%clk 0:02:18]} 22. f3 {[%clk 0:02:35.5]} 22...
Qd3 {[%clk 0:02:14.2]} 23. Bxe5 {[%clk 0:02:33.5]} 23... Qxd1 {[%clk 0:02:12.6]}
24. Rcxd1 {[%clk 0:02:28.3]} 24... Rxe5 {[%clk 0:02:12.1]} 25. a5 {[%clk
0:02:18.1]} 25... Rfe8 {[%clk 0:02:11.1]} 26. Rd3 {[%clk 0:02:16.9]} 26... bxa5
{[%clk 0:02:03.2]} 27. Nxa5 {[%clk 0:02:18.8]} 27... Rb8 {[%clk 0:01:49.2]} 28.
Nc6 {[%clk 0:02:19]} 28... Rb6 {[%clk 0:01:37.8]} 29. Nxe5 {[%clk 0:02:18]}
29... Bxe5 {[%clk 0:01:39.4]} 30. Rb1 {[%clk 0:02:18.6]} 30... a5 {[%clk
0:01:38.2]} 31. f4 {[%clk 0:02:18.5]} 31... Bf6 {[%clk 0:01:35.3]} 32. b5 {[%clk
0:02:19]} 32... g5 {[%clk 0:01:29.2]} 33. g3 {[%clk 0:02:18.7]} 33... Kg6 {[%clk
0:01:21.7]} 34. Ra3 {[%clk 0:02:18]} 1-0

[Event "*** Titled Tuesday 3|2 Blitz"]
[Site "Chess.com"]
[Date "2016.05.03"]
[Round "9"]
[White "Journey_to_GrandMaster_YT"]
[Black "Mischuk_D"]
[Result "1-0"]
[WhiteElo "2356"]
[BlackElo "2446"]
[TimeControl "180+2"]
[EndTime "12:55:39 PDT"]
[Termination "Journey_to_GrandMaster_YT won by resignation"]

1. d4 {[%clk 0:03:01.9]} 1... Nf6 {[%clk 0:02:50.9]} 2. c4 {[%clk 0:03:02.5]}
2... b6 {[%clk 0:02:52.3]} 3. Nc3 {[%clk 0:03:02.1]} 3... Bb7 {[%clk 0:02:52.1]}
4. d5 {[%clk 0:03:01.8]} 4... e6 {[%clk 0:02:51.6]} 5. e4 {[%clk 0:02:59.8]}
5... Bb4 {[%clk 0:02:52.6]} 6. Bd3 {[%clk 0:03:00]} 6... Bxc3+ {[%clk
0:02:52.9]} 7. bxc3 {[%clk 0:03:01]} 7... e5 {[%clk 0:02:49.9]} 8. Ne2 {[%clk
0:02:58.3]} 8... d6 {[%clk 0:02:51.2]} 9. O-O {[%clk 0:02:59.2]} 9... O-O {[%clk
0:02:50.7]} 10. f4 {[%clk 0:02:59.7]} 10... exf4 {[%clk 0:02:51.5]} 11. Bxf4
{[%clk 0:03:00.3]} 11... Ng4 {[%clk 0:02:52.2]} 12. Nd4 {[%clk 0:02:57]} 12...
Ne5 {[%clk 0:02:52.2]} 13. Nf5 {[%clk 0:02:55.6]} 13... Bc8 {[%clk 0:02:44.8]}
14. Bxe5 {[%clk 0:02:55.3]} 14... dxe5 {[%clk 0:02:45.4]} 15. Qf3 {[%clk
0:02:52]} 15... Bxf5 {[%clk 0:02:45.6]} 16. Qxf5 {[%clk 0:02:51.1]} 16... Nd7
{[%clk 0:02:44.7]} 17. Rf3 {[%clk 0:02:50]} 17... Qe7 {[%clk 0:02:42.8]} 18.
Raf1 {[%clk 0:02:50]} 18... g6 {[%clk 0:02:40.6]} 19. Qg4 {[%clk 0:02:50.1]}
19... Nc5 {[%clk 0:02:41.3]} 20. Bc2 {[%clk 0:02:48.3]} 20... f6 {[%clk
0:02:41.8]} 21. Rh3 {[%clk 0:02:48.9]} 21... Kh8 {[%clk 0:02:35.6]} 22. Rh6
{[%clk 0:02:43.9]} 22... Rg8 {[%clk 0:02:31.6]} 23. Rf3 {[%clk 0:02:39.5]} 23...
Raf8 {[%clk 0:02:32]} 24. Rfh3 {[%clk 0:02:38.8]} 24... Qf7 {[%clk 0:02:01.1]}
25. Rxh7+ {[%clk 0:02:36.2]} 25... Qxh7 {[%clk 0:02:02]} 26. Rxh7+ {[%clk
0:02:37.4]} 26... Kxh7 {[%clk 0:02:03.9]} 27. h4 {[%clk 0:02:31.3]} 27... Nb7
{[%clk 0:01:57.1]} 28. Ba4 {[%clk 0:02:21.1]} 28... Nd6 {[%clk 0:01:58]} 29. Bd7
{[%clk 0:02:20.8]} 29... f5 {[%clk 0:01:56.4]} 30. exf5 {[%clk 0:02:21.6]} 30...
gxf5 {[%clk 0:01:57.6]} 31. Qh5+ {[%clk 0:02:22.4]} 31... Kg7 {[%clk 0:01:57.7]}
32. Qg5+ {[%clk 0:02:18.2]} 32... Kh7 {[%clk 0:01:58.8]} 33. Qh5+ {[%clk
0:02:17.8]} 33... Kg7 {[%clk 0:01:59.8]} 34. Be6 {[%clk 0:02:14.8]} 34... Rh8
{[%clk 0:01:53.9]} 35. Qg5+ {[%clk 0:02:15.5]} 35... Kh7 {[%clk 0:01:55.5]} 36.
h5 {[%clk 0:02:14.2]} 36... Rhg8 {[%clk 0:01:52.6]} 37. Bxg8+ {[%clk 0:02:01.9]}
37... Rxg8 {[%clk 0:01:54.5]} 38. Qe7+ {[%clk 0:02:02.4]} 38... Rg7 {[%clk
0:01:55.9]} 39. Qxe5 {[%clk 0:02:03.6]} 39... Kh6 {[%clk 0:01:57.1]} 40. Qf6+
{[%clk 0:01:57.3]} 40... Kh7 {[%clk 0:01:57.6]} 41. h6 {[%clk 0:01:57.8]} 41...
Rg6 {[%clk 0:01:58.5]} 42. Qe7+ {[%clk 0:01:57.6]} 42... Kxh6 {[%clk 0:02:00]}
43. Qxc7 {[%clk 0:01:58.9]} 43... Nxc4 {[%clk 0:02:00.8]} 44. Qxc4 {[%clk
0:01:59.7]} 1-0

[Event "*** Titled Tuesday 3|2 Blitz"]
[Site "Chess.com"]
[Date "2016.05.03"]
[Round "9"]
[White "Gevorg_Harutjunyan"]
[Black "iturrizaga"]
[Result "1-0"]
[WhiteElo "2626"]
[BlackElo "2581"]
[TimeControl "180+2"]
[EndTime "12:56:35 PDT"]
[Termination "Gevorg_Harutjunyan won by resignation"]

1. e4 {[%clk 0:03:01.9]} 1... c5 {[%clk 0:03:01.1]} 2. Nc3 {[%clk 0:03:02.9]}
2... g6 {[%clk 0:03:00.9]} 3. f4 {[%clk 0:03:01.5]} 3... Bg7 {[%clk 0:03:02.3]}
4. Nf3 {[%clk 0:03:03]} 4... Nc6 {[%clk 0:03:03.7]} 5. Bb5 {[%clk 0:03:04]} 5...
Nd4 {[%clk 0:03:04.5]} 6. Bd3 {[%clk 0:03:05]} 6... b6 {[%clk 0:02:53.6]} 7. O-O
{[%clk 0:03:01.5]} 7... Bb7 {[%clk 0:02:51.8]} 8. Nxd4 {[%clk 0:02:57.4]} 8...
Bxd4+ {[%clk 0:02:14.7]} 9. Kh1 {[%clk 0:02:58.3]} 9... Nh6 {[%clk 0:02:00.8]}
10. Qe2 {[%clk 0:02:46.9]} 10... O-O {[%clk 0:01:43.6]} 11. Rb1 {[%clk 0:02:44]}
11... f5 {[%clk 0:01:42.1]} 12. b4 {[%clk 0:02:39.2]} 12... cxb4 {[%clk
0:01:31.9]} 13. Rxb4 {[%clk 0:02:39.1]} 13... Bg7 {[%clk 0:01:31.2]} 14. e5
{[%clk 0:02:34.5]} 14... d6 {[%clk 0:01:30.8]} 15. Bc4+ {[%clk 0:02:29.4]} 15...
Kh8 {[%clk 0:01:31.2]} 16. d4 {[%clk 0:02:29.9]} 16... dxe5 {[%clk 0:01:29.4]}
17. dxe5 {[%clk 0:02:29.4]} 17... Rc8 {[%clk 0:01:25.7]} 18. Rd1 {[%clk
0:02:26.1]} 18... Qc7 {[%clk 0:01:20.1]} 19. Be3 {[%clk 0:02:26.4]} 19... Rfd8
{[%clk 0:01:19.5]} 20. Rxd8+ {[%clk 0:02:14.5]} 20... Rxd8 {[%clk 0:01:19.6]}
21. Nb5 {[%clk 0:02:14.7]} 21... Qb8 {[%clk 0:01:09.6]} 22. Nd4 {[%clk
0:02:08.3]} 22... Bd5 {[%clk 0:00:50]} 23. Bxd5 {[%clk 0:01:59.9]} 23... Rxd5
{[%clk 0:00:51.9]} 24. Qf3 {[%clk 0:01:59]} 24... Rc5 {[%clk 0:00:25.8]} 25. Nc6
{[%clk 0:01:53.1]} 25... Rxc6 {[%clk 0:00:06.9]} 26. Qxc6 {[%clk 0:01:49.5]}
26... g5 {[%clk 0:00:06.3]} 27. Rc4 {[%clk 0:01:46.6]} 1-0

[Event "*** Titled Tuesday 3|2 Blitz"]
[Site "Chess.com"]
[Date "2016.05.03"]
[Round "9"]
[White "Alexander_Donchenko"]
[Black "jsdbv"]
[Result "0-1"]
[WhiteElo "2626"]
[BlackElo "2352"]
[TimeControl "180+2"]
[EndTime "12:56:43 PDT"]
[Termination "jsdbv won by resignation"]

1. d4 {[%clk 0:03:01.9]} 1... Nf6 {[%clk 0:03:00.4]} 2. c4 {[%clk 0:03:03]} 2...
e6 {[%clk 0:02:57]} 3. g3 {[%clk 0:03:04]} 3... c5 {[%clk 0:02:54]} 4. d5 {[%clk
0:03:04.8]} 4... exd5 {[%clk 0:02:50.8]} 5. cxd5 {[%clk 0:03:06.7]} 5... d6
{[%clk 0:02:51.2]} 6. Nc3 {[%clk 0:03:07.4]} 6... g6 {[%clk 0:02:48.8]} 7. Bg2
{[%clk 0:03:08.7]} 7... Bg7 {[%clk 0:02:48.3]} 8. Nf3 {[%clk 0:03:09.9]} 8...
O-O {[%clk 0:02:48.7]} 9. O-O {[%clk 0:03:10.7]} 9... a6 {[%clk 0:02:49]} 10. a4
{[%clk 0:03:11.3]} 10... Re8 {[%clk 0:02:47.8]} 11. Bf4 {[%clk 0:03:11.7]} 11...
h6 {[%clk 0:02:41.1]} 12. Re1 {[%clk 0:03:09.3]} 12... Bf5 {[%clk 0:02:33]} 13.
Nd2 {[%clk 0:03:03.5]} 13... g5 {[%clk 0:02:28.8]} 14. e4 {[%clk 0:02:56]} 14...
Bg4 {[%clk 0:02:14.8]} 15. f3 {[%clk 0:02:57.2]} 15... gxf4 {[%clk 0:02:12.7]}
16. fxg4 {[%clk 0:02:57.9]} 16... fxg3 {[%clk 0:02:11.4]} 17. hxg3 {[%clk
0:02:52.3]} 17... Nbd7 {[%clk 0:02:07.8]} 18. Rf1 {[%clk 0:02:49.5]} 18... Ne5
{[%clk 0:02:06.2]} 19. Rf4 {[%clk 0:02:48.3]} 19... Qb6 {[%clk 0:02:03.1]} 20.
Rb1 {[%clk 0:02:26.3]} 20... Qb4 {[%clk 0:01:57.9]} 21. Qf1 {[%clk 0:02:23.4]}
21... Qd4+ {[%clk 0:01:54]} 22. Qf2 {[%clk 0:02:20.5]} 22... Nd3 {[%clk
0:01:46.6]} 23. Qxd4 {[%clk 0:02:17.8]} 23... cxd4 {[%clk 0:01:48.5]} 24. Ne2
{[%clk 0:02:19.1]} 24... Nxf4 {[%clk 0:01:43.9]} 25. gxf4 {[%clk 0:02:21]} 25...
Nxd5 {[%clk 0:01:40.6]} 26. Kf2 {[%clk 0:02:10.4]} 26... Ne3 {[%clk 0:01:39.1]}
27. Bf3 {[%clk 0:02:08.2]} 27... Rac8 {[%clk 0:01:36.9]} 28. Nc1 {[%clk
0:01:57]} 28... Rc2 {[%clk 0:01:31.6]} 29. Ke1 {[%clk 0:01:58]} 29... Bf6 {[%clk
0:01:27]} 30. Nd3 {[%clk 0:01:50.8]} 30... Bh4+ {[%clk 0:01:26]} 31. Ke2 {[%clk
0:01:52.1]} 31... Nc4 {[%clk 0:01:23.9]} 32. Rd1 {[%clk 0:01:53.1]} 32... Nxb2
{[%clk 0:01:22.1]} 33. Nxb2 {[%clk 0:01:53.5]} 33... Rxb2 {[%clk 0:01:24]} 34.
Kd3 {[%clk 0:01:54.9]} 34... Rc8 {[%clk 0:01:19.5]} 35. Kxd4 {[%clk 0:01:53.1]}
35... Bg3 {[%clk 0:01:14.7]} 36. f5 {[%clk 0:01:50.9]} 36... Be5+ {[%clk
0:01:12.5]} 37. Kd3 {[%clk 0:01:50.4]} 37... Rc3+ {[%clk 0:01:12.4]} 38. Ke2
{[%clk 0:01:51.4]} 38... Bf4 {[%clk 0:01:08]} 39. Ke1 {[%clk 0:01:46.1]} 39...
Rxd2 {[%clk 0:01:07.1]} 40. Rxd2 {[%clk 0:01:47]} 40... Bxd2+ {[%clk 0:01:08.4]}
0-1

[Event "*** Titled Tuesday 3|2 Blitz"]
[Site "Chess.com"]
[Date "2016.05.03"]
[Round "9"]
[White "alturas_pacificas"]
[Black "Kawhi_Leonard2"]
[Result "0-1"]
[WhiteElo "2172"]
[BlackElo "2093"]
[TimeControl "180+2"]
[EndTime "12:57:22 PDT"]
[Termination "Kawhi_Leonard2 won by resignation"]

1. d4 {[%clk 0:03:01.9]} 1... Nf6 {[%clk 0:03:00.3]} 2. Bf4 {[%clk 0:03:03.1]}
2... g6 {[%clk 0:02:59.2]} 3. e3 {[%clk 0:03:04]} 3... Bg7 {[%clk 0:03:00.7]} 4.
Be2 {[%clk 0:03:05.1]} 4... O-O {[%clk 0:03:02]} 5. Nf3 {[%clk 0:03:06.4]} 5...
d6 {[%clk 0:03:02.8]} 6. O-O {[%clk 0:03:07.9]} 6... b6 {[%clk 0:03:04.3]} 7. h3
{[%clk 0:03:09.1]} 7... Bb7 {[%clk 0:03:05.8]} 8. c4 {[%clk 0:03:10.1]} 8...
Nbd7 {[%clk 0:03:06.9]} 9. Nc3 {[%clk 0:03:11.5]} 9... Re8 {[%clk 0:03:06.1]}
10. Bh2 {[%clk 0:03:12.6]} 10... e5 {[%clk 0:03:06]} 11. b4 {[%clk 0:03:14]}
11... exd4 {[%clk 0:03:02.2]} 12. exd4 {[%clk 0:03:14.3]} 12... Ne4 {[%clk
0:03:02.6]} 13. Nxe4 {[%clk 0:03:13.5]} 13... Bxe4 {[%clk 0:03:01.8]} 14. Rc1
{[%clk 0:03:12.4]} 14... Qf6 {[%clk 0:02:54.6]} 15. c5 {[%clk 0:03:11.2]} 15...
Rac8 {[%clk 0:02:42.2]} 16. cxd6 {[%clk 0:03:08.4]} 16... cxd6 {[%clk
0:02:41.9]} 17. Qa4 {[%clk 0:03:09.8]} 17... Nf8 {[%clk 0:01:38.7]} 18. Qxa7
{[%clk 0:03:07]} 18... Bxf3 {[%clk 0:01:32.6]} 19. Bxf3 {[%clk 0:03:07.4]} 19...
Qxd4 {[%clk 0:01:33]} 20. Rcd1 {[%clk 0:03:03.3]} 20... Qxb4 {[%clk 0:01:32]}
21. Bxd6 {[%clk 0:03:03.5]} 21... Qa5 {[%clk 0:01:21.7]} 22. Qxa5 {[%clk
0:02:54.8]} 22... bxa5 {[%clk 0:01:22.4]} 23. Rc1 {[%clk 0:02:50.6]} 23... Ne6
{[%clk 0:01:20.3]} 24. Bb7 {[%clk 0:02:45.8]} 24... Rxc1 {[%clk 0:01:14.2]} 25.
Rxc1 {[%clk 0:02:47.7]} 25... Nd4 {[%clk 0:01:15.2]} 26. Kf1 {[%clk 0:02:38.2]}
26... h5 {[%clk 0:01:00.4]} 27. Rc8 {[%clk 0:02:37.5]} 27... Rxc8 {[%clk
0:00:59.1]} 28. Bxc8 {[%clk 0:02:39.4]} 28... Nb5 {[%clk 0:00:54.5]} 29. Bc5
{[%clk 0:02:33.1]} 29... Nc3 {[%clk 0:00:51]} 30. a3 {[%clk 0:02:14.8]} 30...
Bf8 {[%clk 0:00:49.9]} 31. Bxf8 {[%clk 0:02:16.1]} 31... Kxf8 {[%clk 0:00:50.5]}
32. Bd7 {[%clk 0:02:14.6]} 32... Ke7 {[%clk 0:00:50.5]} 33. Bc6 {[%clk
0:02:13.5]} 33... Kd6 {[%clk 0:00:50.5]} 34. Be8 {[%clk 0:02:14.9]} 34... Ke7
{[%clk 0:00:51.4]} 35. Bc6 {[%clk 0:02:15.7]} 35... Kd6 {[%clk 0:00:52.3]} 36.
Bf3 {[%clk 0:02:17.2]} 36... Nb5 {[%clk 0:00:51.6]} 37. g4 {[%clk 0:01:59.7]}
37... h4 {[%clk 0:00:48.5]} 38. Ke2 {[%clk 0:01:51.1]} 38... Nxa3 {[%clk
0:00:48.7]} 39. Ke3 {[%clk 0:01:51.1]} 39... Ke5 {[%clk 0:00:43.6]} 40. Be2
{[%clk 0:01:49]} 40... Nc2+ {[%clk 0:00:42.1]} 41. Kd3 {[%clk 0:01:48.4]} 41...
Nb4+ {[%clk 0:00:36.1]} 42. Kc4 {[%clk 0:01:44.8]} 42... Nd5 {[%clk 0:00:36.7]}
43. Kb5 {[%clk 0:01:42.7]} 43... Nc3+ {[%clk 0:00:37]} 44. Kxa5 {[%clk
0:01:42.4]} 44... Nxe2 {[%clk 0:00:37.5]} 0-1

[Event "*** Titled Tuesday 3|2 Blitz"]
[Site "Chess.com"]
[Date "2016.05.03"]
[Round "9"]
[White "ArnaudovP"]
[Black "arna"]
[Result "1-0"]
[WhiteElo "2404"]
[BlackElo "2140"]
[TimeControl "180+2"]
[EndTime "12:57:34 PDT"]
[Termination "ArnaudovP won by resignation"]

1. d4 {[%clk 0:03:01.9]} 1... Nf6 {[%clk 0:03:00.2]} 2. c4 {[%clk 0:03:01.2]}
2... g6 {[%clk 0:03:01.3]} 3. Nc3 {[%clk 0:02:57.5]} 3... Bg7 {[%clk 0:03:01.5]}
4. e4 {[%clk 0:02:57.6]} 4... d6 {[%clk 0:03:02.8]} 5. Nf3 {[%clk 0:02:58.2]}
5... O-O {[%clk 0:03:03.1]} 6. h3 {[%clk 0:02:59.2]} 6... e5 {[%clk 0:02:59.1]}
7. d5 {[%clk 0:02:59.2]} 7... a5 {[%clk 0:02:57.4]} 8. g4 {[%clk 0:02:58.8]}
8... Ne8 {[%clk 0:02:51.1]} 9. Be2 {[%clk 0:02:54.5]} 9... Na6 {[%clk
0:02:48.8]} 10. Rg1 {[%clk 0:02:53.2]} 10... Kh8 {[%clk 0:02:49.1]} 11. h4
{[%clk 0:02:53.3]} 11... f5 {[%clk 0:02:46.7]} 12. g5 {[%clk 0:02:54.1]} 12...
Nc5 {[%clk 0:02:31.1]} 13. Be3 {[%clk 0:02:54.1]} 13... b6 {[%clk 0:02:19.5]}
14. h5 {[%clk 0:02:54]} 14... Rf7 {[%clk 0:02:04.9]} 15. hxg6 {[%clk 0:02:53.5]}
15... hxg6 {[%clk 0:02:04.5]} 16. Nh4 {[%clk 0:02:54.9]} 16... Nxe4 {[%clk
0:01:50.4]} 17. Nxe4 {[%clk 0:02:53.2]} 17... fxe4 {[%clk 0:01:50.7]} 18. Nxg6+
{[%clk 0:02:54.4]} 18... Kg8 {[%clk 0:01:51.6]} 19. Bg4 {[%clk 0:02:55.6]} 19...
a4 {[%clk 0:01:38.7]} 20. Be6 {[%clk 0:02:50.2]} 20... c5 {[%clk 0:01:17.4]} 21.
Qh5 {[%clk 0:02:39.2]} 21... Bxe6 {[%clk 0:01:05.8]} 22. dxe6 {[%clk 0:02:39.3]}
22... Re7 {[%clk 0:01:03.3]} 23. Nxe7+ {[%clk 0:02:37.3]} 23... Qxe7 {[%clk
0:01:05.2]} 24. Qg6 {[%clk 0:02:37.1]} 24... Nc7 {[%clk 0:01:01.8]} 25. Rh1
{[%clk 0:02:34.3]} 25... Nxe6 {[%clk 0:00:38.4]} 26. O-O-O {[%clk 0:02:22]}
26... a3 {[%clk 0:00:32.3]} 27. b3 {[%clk 0:02:15.1]} 27... Nd4 {[%clk
0:00:33.2]} 28. Rh3 {[%clk 0:02:06.4]} 28... Qe6 {[%clk 0:00:13.4]} 29. Qh7+
{[%clk 0:02:05.7]} 29... Kf8 {[%clk 0:00:14.6]} 30. g6 {[%clk 0:02:06.8]} 30...
Ra7 {[%clk 0:00:08.2]} 31. Bh6 {[%clk 0:02:07.1]} 31... Ne2+ {[%clk 0:00:05.4]}
32. Kd2 {[%clk 0:02:06.7]} 32... Nd4 {[%clk 0:00:05.6]} 33. Qh8+ {[%clk
0:02:06.3]} 33... Qg8 {[%clk 0:00:04.5]} 34. Bxg7+ {[%clk 0:01:58.8]} 34... Rxg7
{[%clk 0:00:06.4]} 35. Qh4 {[%clk 0:01:59.3]} 35... Rxg6 {[%clk 0:00:06.9]} 36.
Qd8+ {[%clk 0:01:59.2]} 36... Kf7 {[%clk 0:00:08.2]} 37. Qd7+ {[%clk 0:01:59.4]}
37... Kf8 {[%clk 0:00:08.4]} 38. Rh7 {[%clk 0:01:59.3]} 38... Re6 {[%clk
0:00:06.5]} 39. Qd8+ {[%clk 0:01:58.6]} 39... Re8 {[%clk 0:00:07.4]} 40. Qf6+
{[%clk 0:01:59.3]} 1-0

[Event "*** Titled Tuesday 3|2 Blitz"]
[Site "Chess.com"]
[Date "2016.05.03"]
[Round "9"]
[White "Badouuu"]
[Black "FearNoEvil12"]
[Result "0-1"]
[WhiteElo "1992"]
[BlackElo "1932"]
[TimeControl "180+2"]
[EndTime "12:57:36 PDT"]
[Termination "FearNoEvil12 won by resignation"]

1. e4 {[%clk 0:02:50.5]} 1... c5 {[%clk 0:02:55.6]} 2. Nf3 {[%clk 0:02:50.4]}
2... d6 {[%clk 0:02:55.4]} 3. Bb5+ {[%clk 0:02:49.3]} 3... Nd7 {[%clk
0:02:53.3]} 4. d4 {[%clk 0:02:44.1]} 4... cxd4 {[%clk 0:02:38.4]} 5. Qxd4 {[%clk
0:02:46]} 5... a6 {[%clk 0:02:34.3]} 6. Bxd7+ {[%clk 0:02:34.4]} 6... Bxd7
{[%clk 0:02:34.1]} 7. O-O {[%clk 0:02:36.3]} 7... e5 {[%clk 0:02:31.2]} 8. Qd3
{[%clk 0:02:37]} 8... Rc8 {[%clk 0:02:28.5]} 9. a4 {[%clk 0:02:36.5]} 9... Qc7
{[%clk 0:02:23.2]} 10. Nc3 {[%clk 0:02:36.6]} 10... Be6 {[%clk 0:02:21.7]} 11.
Rd1 {[%clk 0:02:28.7]} 11... Nf6 {[%clk 0:02:16.7]} 12. Bg5 {[%clk 0:02:28.3]}
12... Be7 {[%clk 0:02:01.9]} 13. Rac1 {[%clk 0:02:22.9]} 13... Qb6 {[%clk
0:01:58.4]} 14. Bxf6 {[%clk 0:02:13.3]} 14... gxf6 {[%clk 0:01:57.9]} 15. b3
{[%clk 0:02:10.4]} 15... Qc5 {[%clk 0:01:52.8]} 16. Nd5 {[%clk 0:02:10.9]} 16...
Bxd5 {[%clk 0:01:52.1]} 17. exd5 {[%clk 0:02:11.9]} 17... Qc3 {[%clk 0:01:27]}
18. Qf5 {[%clk 0:02:10.5]} 18... Rc5 {[%clk 0:01:11.7]} 19. Rd3 {[%clk
0:02:08.9]} 19... Qb2 {[%clk 0:01:10.3]} 20. Rdd1 {[%clk 0:02:05]} 20... Rc3
{[%clk 0:01:04.5]} 21. Nh4 {[%clk 0:01:59.7]} 21... Qa3 {[%clk 0:01:01.6]} 22.
Qe4 {[%clk 0:01:57.3]} 22... Qc5 {[%clk 0:00:58.5]} 23. Nf5 {[%clk 0:01:56.9]}
23... h5 {[%clk 0:00:52.6]} 24. Rd2 {[%clk 0:01:54.3]} 24... Rg8 {[%clk
0:00:50.6]} 25. h3 {[%clk 0:01:30.5]} 25... Rg5 {[%clk 0:00:44.5]} 26. Ng3
{[%clk 0:01:26.7]} 26... Rcxg3 {[%clk 0:00:35.3]} 27. b4 {[%clk 0:01:21.7]}
27... Qa7 {[%clk 0:00:32.2]} 28. c4 {[%clk 0:01:22.3]} 28... Rxg2+ {[%clk
0:00:28.1]} 29. Qxg2 {[%clk 0:01:20.5]} 29... Rxg2+ {[%clk 0:00:28.5]} 30. Kxg2
{[%clk 0:01:22.4]} 30... f5 {[%clk 0:00:29.2]} 31. c5 {[%clk 0:01:21.4]} 31...
Bg5 {[%clk 0:00:27.7]} 32. c6 {[%clk 0:01:16.3]} 32... bxc6 {[%clk 0:00:24.2]}
33. dxc6 {[%clk 0:01:18.2]} 33... Bxd2 {[%clk 0:00:22.4]} 34. c7 {[%clk
0:01:18.8]} 34... Qb7+ {[%clk 0:00:19.7]} 35. f3 {[%clk 0:01:17.1]} 0-1

[Event "*** Titled Tuesday 3|2 Blitz"]
[Site "Chess.com"]
[Date "2016.05.03"]
[Round "9"]
[White "chesstatour"]
[Black "kikydu96"]
[Result "0-1"]
[WhiteElo "2024"]
[BlackElo "2277"]
[TimeControl "180+2"]
[EndTime "12:57:51 PDT"]
[Termination "kikydu96 won by resignation"]

1. c4 {[%clk 0:03:01.9]} 1... e5 {[%clk 0:03:00.8]} 2. Nc3 {[%clk 0:03:02.3]}
2... Nc6 {[%clk 0:03:02.7]} 3. Nf3 {[%clk 0:03:03.9]} 3... Bc5 {[%clk
0:03:03.8]} 4. g3 {[%clk 0:03:01.6]} 4... d6 {[%clk 0:03:05.1]} 5. Bg2 {[%clk
0:03:01.4]} 5... a6 {[%clk 0:03:06.7]} 6. O-O {[%clk 0:03:02.8]} 6... h5 {[%clk
0:03:06.3]} 7. h4 {[%clk 0:03:02.5]} 7... Nf6 {[%clk 0:03:02.5]} 8. d3 {[%clk
0:02:59.7]} 8... Ng4 {[%clk 0:03:03.5]} 9. e3 {[%clk 0:02:58.7]} 9... Ba7 {[%clk
0:02:58]} 10. Rb1 {[%clk 0:02:54.7]} 10... Bf5 {[%clk 0:02:58.1]} 11. b4 {[%clk
0:02:48.3]} 11... f6 {[%clk 0:02:48.9]} 12. b5 {[%clk 0:02:41.3]} 12... axb5
{[%clk 0:02:48.5]} 13. cxb5 {[%clk 0:02:42]} 13... Ne7 {[%clk 0:02:48.9]} 14. e4
{[%clk 0:02:37.1]} 14... Be6 {[%clk 0:02:49.4]} 15. d4 {[%clk 0:02:37.2]} 15...
Qd7 {[%clk 0:02:29.6]} 16. d5 {[%clk 0:02:24.6]} 16... Bf7 {[%clk 0:02:28.9]}
17. Qe2 {[%clk 0:02:17]} 17... Bc5 {[%clk 0:01:51.4]} 18. Bh3 {[%clk 0:01:52.7]}
18... Rg8 {[%clk 0:01:21.8]} 19. Nh2 {[%clk 0:01:07.7]} 19... g5 {[%clk
0:00:59]} 20. Nxg4 {[%clk 0:01:02.5]} 20... hxg4 {[%clk 0:00:50.4]} 21. Bxg4
{[%clk 0:01:02.4]} 21... f5 {[%clk 0:00:51.4]} 22. Bxf5 {[%clk 0:00:53]} 22...
Nxf5 {[%clk 0:00:50.5]} 23. exf5 {[%clk 0:00:50.2]} 23... gxh4 {[%clk
0:00:51.7]} 24. Kg2 {[%clk 0:00:42.8]} 24... Qxf5 {[%clk 0:00:31.7]} 25. Be3
{[%clk 0:00:42.5]} 25... Ra3 {[%clk 0:00:27.3]} 26. Nd1 {[%clk 0:00:30.2]} 26...
Bxd5+ {[%clk 0:00:26.5]} 27. Kg1 {[%clk 0:00:17.7]} 27... Qh3 {[%clk 0:00:21.7]}
28. f3 {[%clk 0:00:15.7]} 28... Rxg3+ {[%clk 0:00:22]} 0-1